[Event "*** Titled Tuesday Blitz"]
[Site "Chess.com"]
[Date "2019.05.07"]
[Round "6"]
[White "cherryandmint"]
[Black "Alexander_Donchenko"]
[Result "1-0"]
[WhiteElo "2693"]
[BlackElo "2782"]
[TimeControl "180+2"]
[EndTime "14:28:12 PDT"]
[Termination "cherryandmint won by resignation"]

1. e4 {[%clk 0:03:01.9]} 1... c5 {[%clk 0:03:00.7]} 2. Nf3 {[%clk 0:03:02.8]}
2... d6 {[%clk 0:03:02.3]} 3. d4 {[%clk 0:03:04.5]} 3... cxd4 {[%clk 0:03:03.9]}
4. Nxd4 {[%clk 0:03:06.4]} 4... Nf6 {[%clk 0:03:05.3]} 5. Nc3 {[%clk 0:03:08]}
5... a6 {[%clk 0:03:07]} 6. g3 {[%clk 0:03:09.7]} 6... e5 {[%clk 0:03:06.6]} 7.
Nde2 {[%clk 0:03:10.9]} 7... Be7 {[%clk 0:03:06.9]} 8. Bg2 {[%clk 0:03:12.2]}
8... b5 {[%clk 0:03:08]} 9. Nd5 {[%clk 0:03:12.6]} 9... Nbd7 {[%clk 0:03:07.8]}
10. Nec3 {[%clk 0:03:12.5]} 10... Bb7 {[%clk 0:03:08.3]} 11. a4 {[%clk
0:03:13.3]} 11... Nxd5 {[%clk 0:02:49.6]} 12. Nxd5 {[%clk 0:03:10.4]} 12... Nf6
{[%clk 0:02:41.1]} 13. Nxf6+ {[%clk 0:03:04.2]} 13... Bxf6 {[%clk 0:02:42]} 14.
Qd3 {[%clk 0:03:05.7]} 14... O-O {[%clk 0:02:41.4]} 15. O-O {[%clk 0:03:06.5]}
15... Qb6 {[%clk 0:02:30.4]} 16. Be3 {[%clk 0:03:03.1]} 16... Qc6 {[%clk
0:02:31.4]} 17. c3 {[%clk 0:02:31.9]} 17... Be7 {[%clk 0:02:28.5]} 18. axb5
{[%clk 0:01:38.7]} 18... axb5 {[%clk 0:02:30.4]} 19. f3 {[%clk 0:01:35.6]} 19...
Rfc8 {[%clk 0:02:21.2]} 20. Rfd1 {[%clk 0:01:32]} 20... g6 {[%clk 0:02:15]} 21.
Bf1 {[%clk 0:01:26.7]} 21... Rxa1 {[%clk 0:01:38.5]} 22. Rxa1 {[%clk 0:01:25.8]}
22... d5 {[%clk 0:01:40.4]} 23. exd5 {[%clk 0:01:22]} 23... Qxd5 {[%clk
0:01:42.3]} 24. Qxd5 {[%clk 0:01:18]} 24... Bxd5 {[%clk 0:01:44.2]} 25. Bxb5
{[%clk 0:01:01.4]} 25... Bxf3 {[%clk 0:01:44.8]} 26. Ra7 {[%clk 0:01:01.5]}
26... Bf8 {[%clk 0:01:12.2]} 27. Bd7 {[%clk 0:00:42.4]} 27... Rb8 {[%clk
0:01:01.2]} 28. b4 {[%clk 0:00:41.5]} 28... Bd5 {[%clk 0:01:01.2]} 29. b5 {[%clk
0:00:39.4]} 29... f5 {[%clk 0:00:50.7]} 30. b6 {[%clk 0:00:39.2]} 30... h6
{[%clk 0:00:39.1]} 31. Bb5 {[%clk 0:00:39]} 31... f4 {[%clk 0:00:21.3]} 32. gxf4
{[%clk 0:00:39.7]} 32... exf4 {[%clk 0:00:23.2]} 33. Bd4 {[%clk 0:00:41.3]}
33... Rd8 {[%clk 0:00:21.2]} 34. b7 {[%clk 0:00:39.1]} 34... Rb8 {[%clk
0:00:19]} 35. Ba6 {[%clk 0:00:39.9]} 35... Kf7 {[%clk 0:00:17.8]} 36. Kf1 {[%clk
0:00:34.1]} 36... Ke6 {[%clk 0:00:17.2]} 37. Bb6 {[%clk 0:00:13.7]} 37... Bd6
{[%clk 0:00:17.4]} 38. c4 {[%clk 0:00:14.9]} 38... Be4 {[%clk 0:00:16.9]} 39. c5
{[%clk 0:00:15.3]} 39... Be5 {[%clk 0:00:16.8]} 40. Bc4+ {[%clk 0:00:16.8]}
40... Bd5 {[%clk 0:00:13]} 41. Bxd5+ {[%clk 0:00:08.2]} 41... Kxd5 {[%clk
0:00:14.9]} 42. Kf2 {[%clk 0:00:09.7]} 42... g5 {[%clk 0:00:14.2]} 43. Kf3
{[%clk 0:00:10.9]} 43... h5 {[%clk 0:00:15.1]} 44. h3 {[%clk 0:00:12.5]} 44...
Kc6 {[%clk 0:00:04.7]} 45. Ra8 {[%clk 0:00:13.7]} 45... Rxb7 {[%clk 0:00:04.8]}
46. Rg8 {[%clk 0:00:14.5]} 46... Kd5 {[%clk 0:00:02.4]} 47. Rxg5 {[%clk
0:00:15.3]} 47... Ke6 {[%clk 0:00:03.7]} 48. Rxh5 {[%clk 0:00:16.5]} 48... Rg7
{[%clk 0:00:04]} 49. Ke4 {[%clk 0:00:17.3]} 49... Bb8 {[%clk 0:00:04.2]} 50. c6
{[%clk 0:00:18.1]} 50... Bd6 {[%clk 0:00:05]} 51. Bd4 {[%clk 0:00:18.5]} 51...
Rg6 {[%clk 0:00:04.4]} 52. Rh8 {[%clk 0:00:17.6]} 52... Rg1 {[%clk 0:00:05.1]}
53. Rh6+ {[%clk 0:00:18.4]} 53... Ke7 {[%clk 0:00:06.4]} 54. Kd5 {[%clk
0:00:19.6]} 54... Rd1 {[%clk 0:00:06.9]} 55. Re6+ {[%clk 0:00:20]} 55... Kf7
{[%clk 0:00:07.6]} 56. Rxd6 {[%clk 0:00:21]} 56... f3 {[%clk 0:00:09.2]} 57.
Rf6+ {[%clk 0:00:22.2]} 57... Kg8 {[%clk 0:00:10.5]} 58. Rxf3 {[%clk 0:00:24.1]}
1-0

[Event "*** Titled Tuesday Blitz"]
[Site "Chess.com"]
[Date "2019.05.07"]
[Round "6"]
[White "VFernandezB"]
[Black "MatthewG-p4p"]
[Result "1/2-1/2"]
[WhiteElo "2364"]
[BlackElo "2691"]
[TimeControl "180+2"]
[EndTime "14:28:13 PDT"]
[Termination "Game drawn by stalemate"]

1. d4 {[%clk 0:03:01.9]} 1... Nf6 {[%clk 0:03:00.9]} 2. Nf3 {[%clk 0:03:02.1]}
2... e6 {[%clk 0:03:01.6]} 3. c4 {[%clk 0:03:03.6]} 3... c5 {[%clk 0:03:03.1]}
4. Nc3 {[%clk 0:03:02.5]} 4... cxd4 {[%clk 0:03:01.4]} 5. Nxd4 {[%clk
0:03:03.6]} 5... Nc6 {[%clk 0:03:02.3]} 6. e3 {[%clk 0:02:59.9]} 6... Bb4 {[%clk
0:02:59.1]} 7. Bd2 {[%clk 0:02:58.3]} 7... O-O {[%clk 0:02:58.8]} 8. Be2 {[%clk
0:02:57.9]} 8... d5 {[%clk 0:02:58.8]} 9. Nxc6 {[%clk 0:02:55.7]} 9... bxc6
{[%clk 0:02:59.8]} 10. Bf3 {[%clk 0:02:56.6]} 10... Rb8 {[%clk 0:02:57.4]} 11.
O-O {[%clk 0:02:50.8]} 11... e5 {[%clk 0:02:56.8]} 12. cxd5 {[%clk 0:02:49.5]}
12... cxd5 {[%clk 0:02:57.6]} 13. a3 {[%clk 0:02:35.6]} 13... Be7 {[%clk
0:02:54.7]} 14. Qa4 {[%clk 0:02:28.2]} 14... Rxb2 {[%clk 0:02:53.3]} 15. Rfd1
{[%clk 0:02:27.4]} 15... Be6 {[%clk 0:02:41.2]} 16. Qxa7 {[%clk 0:01:51.8]}
16... e4 {[%clk 0:02:36.5]} 17. Be2 {[%clk 0:01:41.8]} 17... Bd6 {[%clk
0:02:35.4]} 18. Rab1 {[%clk 0:01:40.1]} 18... Rxb1 {[%clk 0:01:49]} 19. Rxb1
{[%clk 0:01:39.9]} 19... Qc8 {[%clk 0:01:48.8]} 20. Nb5 {[%clk 0:01:35.1]} 20...
Qc2 {[%clk 0:01:44.3]} 21. Rd1 {[%clk 0:01:34.7]} 21... Bc5 {[%clk 0:01:40]} 22.
Qa5 {[%clk 0:01:29.8]} 22... Be7 {[%clk 0:01:03.4]} 23. Qc3 {[%clk 0:01:28.6]}
23... Qa4 {[%clk 0:01:01.8]} 24. h3 {[%clk 0:01:11.6]} 24... Bd7 {[%clk
0:00:50.1]} 25. Nd4 {[%clk 0:00:56.1]} 25... Qxa3 {[%clk 0:00:48.1]} 26. Qc7
{[%clk 0:00:49.1]} 26... Bd6 {[%clk 0:00:43.2]} 27. Qa5 {[%clk 0:00:43.8]} 27...
Ra8 {[%clk 0:00:40.1]} 28. Qxa3 {[%clk 0:00:43.9]} 28... Rxa3 {[%clk 0:00:42]}
29. Bb5 {[%clk 0:00:36]} 29... Be5 {[%clk 0:00:23.6]} 30. Nc6 {[%clk 0:00:32.5]}
30... Bxc6 {[%clk 0:00:17.9]} 31. Bxc6 {[%clk 0:00:33]} 31... Ra2 {[%clk
0:00:18.3]} 32. Bb4 {[%clk 0:00:29.1]} 32... h6 {[%clk 0:00:13.8]} 33. Be7
{[%clk 0:00:26.4]} 33... d4 {[%clk 0:00:06.1]} 34. exd4 {[%clk 0:00:23.7]} 34...
Bf4 {[%clk 0:00:07.6]} 35. Bxf6 {[%clk 0:00:23.4]} 35... gxf6 {[%clk 0:00:09.5]}
36. Bxe4 {[%clk 0:00:24.6]} 36... Kg7 {[%clk 0:00:11]} 37. Rb1 {[%clk
0:00:18.9]} 37... Rd2 {[%clk 0:00:11.6]} 38. d5 {[%clk 0:00:20]} 38... Rd4
{[%clk 0:00:13.1]} 39. Bf3 {[%clk 0:00:21.1]} 39... f5 {[%clk 0:00:13.6]} 40.
Rb7 {[%clk 0:00:22]} 40... Kf6 {[%clk 0:00:14.3]} 41. g3 {[%clk 0:00:22.6]}
41... Bd6 {[%clk 0:00:15.3]} 42. Kg2 {[%clk 0:00:23.4]} 42... Rd2 {[%clk
0:00:16.6]} 43. Bh5 {[%clk 0:00:22.4]} 43... Bc5 {[%clk 0:00:14.8]} 44. Bxf7
{[%clk 0:00:14.5]} 44... Rxf2+ {[%clk 0:00:15.3]} 45. Kh1 {[%clk 0:00:16.1]}
45... Rf3 {[%clk 0:00:15.5]} 46. Kg2 {[%clk 0:00:16.1]} 46... Rf2+ {[%clk
0:00:16.9]} 47. Kh1 {[%clk 0:00:17.5]} 47... Bd6 {[%clk 0:00:18.4]} 48. Be6
{[%clk 0:00:14.4]} 48... Bxg3 {[%clk 0:00:18.7]} 49. Rf7+ {[%clk 0:00:15.4]}
49... Ke5 {[%clk 0:00:20.3]} 50. Rxf5+ {[%clk 0:00:15.4]} 50... Rxf5 {[%clk
0:00:19.1]} 51. Bxf5 {[%clk 0:00:16.9]} 51... Kxf5 {[%clk 0:00:21]} 52. h4
{[%clk 0:00:17.7]} 52... Bd6 {[%clk 0:00:22.9]} 53. h5 {[%clk 0:00:18.8]} 53...
Kg4 {[%clk 0:00:24.1]} 54. Kg2 {[%clk 0:00:20.2]} 54... Kh4 {[%clk 0:00:25.2]}
55. Kh1 {[%clk 0:00:21.8]} 55... Kh3 {[%clk 0:00:24.6]} 56. Kg1 {[%clk
0:00:22.7]} 56... Kg3 {[%clk 0:00:24.5]} 57. Kh1 {[%clk 0:00:24.2]} 57... Kf2
{[%clk 0:00:08.9]} 1/2-1/2

[Event "*** Titled Tuesday Blitz"]
[Site "Chess.com"]
[Date "2019.05.07"]
[Round "6"]
[White "Shahinyan_ChessMood"]
[Black "kharov2001"]
[Result "0-1"]
[WhiteElo "2727"]
[BlackElo "2553"]
[TimeControl "180+2"]
[EndTime "14:28:23 PDT"]
[Termination "kharov2001 won by resignation"]

1. Nf3 {[%clk 0:03:01.9]} 1... d5 {[%clk 0:03:00.5]} 2. g3 {[%clk 0:03:02]} 2...
e6 {[%clk 0:03:01.6]} 3. Bg2 {[%clk 0:03:02.5]} 3... Nf6 {[%clk 0:03:03.5]} 4.
O-O {[%clk 0:03:04.3]} 4... Be7 {[%clk 0:03:05.4]} 5. d3 {[%clk 0:03:06.2]} 5...
c5 {[%clk 0:03:05.9]} 6. Nbd2 {[%clk 0:03:08.1]} 6... O-O {[%clk 0:03:07.1]} 7.
e4 {[%clk 0:03:07.6]} 7... Nc6 {[%clk 0:03:08.3]} 8. Re1 {[%clk 0:03:07.7]} 8...
b5 {[%clk 0:03:07.9]} 9. e5 {[%clk 0:03:08.2]} 9... Nd7 {[%clk 0:03:09.5]} 10.
Nf1 {[%clk 0:03:10.1]} 10... Qc7 {[%clk 0:03:08.8]} 11. Bf4 {[%clk 0:03:09.3]}
11... Bb7 {[%clk 0:03:10.3]} 12. h4 {[%clk 0:03:09.9]} 12... Rfc8 {[%clk
0:03:11.6]} 13. N1h2 {[%clk 0:03:10]} 13... a5 {[%clk 0:03:09.9]} 14. Ng5 {[%clk
0:03:10]} 14... h6 {[%clk 0:03:08.1]} 15. Qh5 {[%clk 0:03:10.7]} 15... hxg5
{[%clk 0:02:59]} 16. hxg5 {[%clk 0:03:12.6]} 16... g6 {[%clk 0:02:59.3]} 17. Qh4
{[%clk 0:03:10.9]} 17... Bf8 {[%clk 0:02:30]} 18. Ng4 {[%clk 0:03:06.4]} 18...
Bg7 {[%clk 0:02:31.4]} 19. Nf6+ {[%clk 0:03:01.5]} 19... Kf8 {[%clk 0:02:31]}
20. Nxd5 {[%clk 0:02:43.5]} 20... Qd8 {[%clk 0:02:26.5]} 21. Nf6 {[%clk
0:02:43.9]} 21... Ke7 {[%clk 0:02:12.6]} 22. Bf3 {[%clk 0:02:20.9]} 22... Rab8
{[%clk 0:02:09.3]} 23. Kg2 {[%clk 0:02:21]} 23... Qh8 {[%clk 0:02:05.7]} 24. Qg4
{[%clk 0:02:19.5]} 24... Qd8 {[%clk 0:01:48.5]} 25. c3 {[%clk 0:02:18.7]} 25...
Qc7 {[%clk 0:01:48.4]} 26. d4 {[%clk 0:00:57.9]} 26... cxd4 {[%clk 0:01:46.1]}
27. Nd5+ {[%clk 0:00:38.9]} 27... exd5 {[%clk 0:01:37.1]} 28. cxd4 {[%clk
0:00:40.8]} 28... Nxd4 {[%clk 0:00:53.9]} 29. e6 {[%clk 0:00:37.3]} 29... Ne5
{[%clk 0:00:38.4]} 30. exf7 {[%clk 0:00:26.3]} 30... Kxf7 {[%clk 0:00:37.5]} 31.
Bxe5 {[%clk 0:00:23.4]} 31... Bxe5 {[%clk 0:00:37.6]} 32. Rxe5 {[%clk
0:00:14.5]} 32... Qxe5 {[%clk 0:00:35.6]} 33. Rh1 {[%clk 0:00:16]} 33... Nf5
{[%clk 0:00:23.3]} 34. Rh7+ {[%clk 0:00:13.9]} 34... Ke6 {[%clk 0:00:13.5]} 35.
Rh6 {[%clk 0:00:12.5]} 35... Rg8 {[%clk 0:00:10.9]} 36. Rh7 {[%clk 0:00:09.7]}
36... Rg7 {[%clk 0:00:09.4]} 37. Rh6 {[%clk 0:00:10.3]} 37... d4 {[%clk
0:00:10.1]} 38. Bxb7 {[%clk 0:00:11.2]} 38... Rbxb7 {[%clk 0:00:11.3]} 39. Kh2
{[%clk 0:00:13.1]} 39... Rbc7 {[%clk 0:00:10.4]} 40. Qf3 {[%clk 0:00:12.2]}
40... Kd6 {[%clk 0:00:09]} 41. Qa8 {[%clk 0:00:12.5]} 41... Qe2 {[%clk
0:00:08.5]} 42. Qd8+ {[%clk 0:00:12.2]} 42... Rcd7 {[%clk 0:00:08.6]} 43. Qb8+
{[%clk 0:00:12]} 43... Kc5 {[%clk 0:00:08.5]} 44. Qf8+ {[%clk 0:00:11.3]} 44...
Kc4 {[%clk 0:00:04.5]} 45. Kg1 {[%clk 0:00:04.3]} 45... Rde7 {[%clk 0:00:04.3]}
46. Qc8+ {[%clk 0:00:04.6]} 46... Rc7 {[%clk 0:00:03.9]} 47. Qf8 {[%clk
0:00:02.8]} 47... Kd3 {[%clk 0:00:05.3]} 48. Qe8 {[%clk 0:00:02.2]} 48... Qxe8
{[%clk 0:00:05.5]} 49. Rh4 {[%clk 0:00:03]} 49... Qe2 {[%clk 0:00:06.2]} 50.
Rxd4+ {[%clk 0:00:04.9]} 50... Nxd4 {[%clk 0:00:06.9]} 51. Kg2 {[%clk
0:00:06.8]} 0-1

[Event "*** Titled Tuesday Blitz"]
[Site "Chess.com"]
[Date "2019.05.07"]
[Round "6"]
[White "GMKrikor"]
[Black "blitzking1729"]
[Result "0-1"]
[WhiteElo "2737"]
[BlackElo "2497"]
[TimeControl "180+2"]
[EndTime "14:28:25 PDT"]
[Termination "blitzking1729 won on time"]

1. e4 {[%clk 0:03:01.9]} 1... e6 {[%clk 0:02:59.2]} 2. d4 {[%clk 0:02:59.8]}
2... d5 {[%clk 0:02:59.7]} 3. Bd3 {[%clk 0:03:01.5]} 3... dxe4 {[%clk
0:02:57.4]} 4. Bxe4 {[%clk 0:03:03.4]} 4... Nf6 {[%clk 0:02:58.2]} 5. Bf3 {[%clk
0:03:05]} 5... c5 {[%clk 0:02:59]} 6. Ne2 {[%clk 0:03:06.3]} 6... Nc6 {[%clk
0:02:56.8]} 7. Be3 {[%clk 0:03:07.5]} 7... cxd4 {[%clk 0:02:56.7]} 8. Nxd4
{[%clk 0:03:08.4]} 8... Nxd4 {[%clk 0:02:57.7]} 9. Qxd4 {[%clk 0:03:10.3]} 9...
Qxd4 {[%clk 0:02:54.3]} 10. Bxd4 {[%clk 0:03:12.2]} 10... Be7 {[%clk 0:02:54.7]}
11. O-O {[%clk 0:03:10.9]} 11... O-O {[%clk 0:02:54.5]} 12. Nc3 {[%clk
0:02:58.5]} 12... Rd8 {[%clk 0:02:18.4]} 13. Rfd1 {[%clk 0:02:58.4]} 13... Nd5
{[%clk 0:02:06]} 14. Nxd5 {[%clk 0:02:33.2]} 14... exd5 {[%clk 0:02:06.3]} 15.
Be3 {[%clk 0:02:35.1]} 15... Be6 {[%clk 0:02:06.8]} 16. c3 {[%clk 0:02:35.4]}
16... Rd7 {[%clk 0:01:59.2]} 17. Rd2 {[%clk 0:02:29.9]} 17... a6 {[%clk
0:02:00.1]} 18. Rad1 {[%clk 0:02:30.9]} 18... Rad8 {[%clk 0:01:34.9]} 19. Bb6
{[%clk 0:02:31.1]} 19... Bg5 {[%clk 0:01:27.6]} 20. Rd3 {[%clk 0:02:08]} 20...
Re8 {[%clk 0:01:28.1]} 21. g3 {[%clk 0:02:07.3]} 21... Rd6 {[%clk 0:01:26.3]}
22. Bc5 {[%clk 0:02:06.9]} 22... Rc6 {[%clk 0:01:19.1]} 23. Be3 {[%clk
0:00:44.2]} 23... Bxe3 {[%clk 0:01:16.7]} 24. Rxe3 {[%clk 0:00:46.1]} 24... Rd6
{[%clk 0:00:50.1]} 25. Bxd5 {[%clk 0:00:41.1]} 25... Red8 {[%clk 0:00:49.8]} 26.
c4 {[%clk 0:00:42]} 26... b5 {[%clk 0:00:38]} 27. b3 {[%clk 0:00:38.6]} 27...
bxc4 {[%clk 0:00:36.9]} 28. bxc4 {[%clk 0:00:40.5]} 28... Bxd5 {[%clk
0:00:34.9]} 29. Rxd5 {[%clk 0:00:25.9]} 29... Rxd5 {[%clk 0:00:32.6]} 30. cxd5
{[%clk 0:00:27.8]} 30... Kf8 {[%clk 0:00:33.5]} 31. Ra3 {[%clk 0:00:10.1]} 31...
Rxd5 {[%clk 0:00:33.3]} 32. Rxa6 {[%clk 0:00:10.8]} 32... Rd1+ {[%clk
0:00:34.2]} 33. Kg2 {[%clk 0:00:11.4]} 33... Ra1 {[%clk 0:00:34]} 34. h4 {[%clk
0:00:11.9]} 34... h5 {[%clk 0:00:31.9]} 35. a4 {[%clk 0:00:07.4]} 35... Ra3
{[%clk 0:00:30.7]} 36. Ra7 {[%clk 0:00:07.2]} 36... g6 {[%clk 0:00:30.8]} 37. a5
{[%clk 0:00:08]} 37... Kg7 {[%clk 0:00:24.3]} 38. a6 {[%clk 0:00:06.3]} 38...
Kg8 {[%clk 0:00:22]} 39. Ra8+ {[%clk 0:00:03.9]} 39... Kg7 {[%clk 0:00:22.6]}
40. Kf1 {[%clk 0:00:05.8]} 40... Ra2 {[%clk 0:00:22.9]} 41. Kg1 {[%clk
0:00:06.4]} 41... f6 {[%clk 0:00:23.8]} 42. Kg2 {[%clk 0:00:07.3]} 42... Kh7
{[%clk 0:00:21.8]} 43. Kf3 {[%clk 0:00:07.8]} 43... Ra4 {[%clk 0:00:19.1]} 44.
Ke3 {[%clk 0:00:08.8]} 44... g5 {[%clk 0:00:19.4]} 45. Kd3 {[%clk 0:00:04.2]}
45... gxh4 {[%clk 0:00:19.7]} 46. gxh4 {[%clk 0:00:06.1]} 46... Rxh4 {[%clk
0:00:19.1]} 47. Rf8 {[%clk 0:00:04.5]} 47... Ra4 {[%clk 0:00:13.1]} 48. Rxf6
{[%clk 0:00:05.7]} 48... h4 {[%clk 0:00:14.2]} 49. Ke2 {[%clk 0:00:06.3]} 49...
h3 {[%clk 0:00:13.8]} 50. Kf3 {[%clk 0:00:07.7]} 50... Ra3+ {[%clk 0:00:12.4]}
0-1

[Event "*** Titled Tuesday Blitz"]
[Site "Chess.com"]
[Date "2019.05.07"]
[Round "6"]
[White "Vice64"]
[Black "Karacsonyi_Gellert"]
[Result "1-0"]
[WhiteElo "2536"]
[BlackElo "2545"]
[TimeControl "180+2"]
[EndTime "14:28:35 PDT"]
[Termination "Vice64 won by resignation"]

1. e4 {[%clk 0:03:01.9]} 1... c5 {[%clk 0:03:00.5]} 2. Nf3 {[%clk 0:03:02.6]}
2... Nc6 {[%clk 0:03:00.8]} 3. d4 {[%clk 0:03:03.4]} 3... cxd4 {[%clk 0:03:02]}
4. Nxd4 {[%clk 0:03:05.3]} 4... g6 {[%clk 0:03:03.6]} 5. c4 {[%clk 0:03:05.6]}
5... Nf6 {[%clk 0:03:04.7]} 6. Nc3 {[%clk 0:03:06]} 6... d6 {[%clk 0:03:06.1]}
7. Be2 {[%clk 0:03:05.7]} 7... Nxd4 {[%clk 0:03:07.6]} 8. Qxd4 {[%clk
0:03:06.2]} 8... Bg7 {[%clk 0:03:09.5]} 9. Be3 {[%clk 0:03:02.6]} 9... O-O
{[%clk 0:03:10.4]} 10. Qd2 {[%clk 0:03:01.9]} 10... a5 {[%clk 0:03:11.8]} 11.
O-O {[%clk 0:03:01.7]} 11... a4 {[%clk 0:03:12.6]} 12. Bd4 {[%clk 0:03:02.4]}
12... Qa5 {[%clk 0:03:11.4]} 13. f3 {[%clk 0:03:01.8]} 13... Be6 {[%clk
0:03:11.7]} 14. Rfd1 {[%clk 0:02:56.9]} 14... Rfc8 {[%clk 0:03:13]} 15. Nd5
{[%clk 0:02:53.5]} 15... Qxd2 {[%clk 0:03:07.2]} 16. Rxd2 {[%clk 0:02:49.1]}
16... Nxd5 {[%clk 0:03:08.4]} 17. exd5 {[%clk 0:02:42.8]} 17... Bd7 {[%clk
0:03:05.5]} 18. Bxg7 {[%clk 0:02:40.8]} 18... Kxg7 {[%clk 0:03:06.7]} 19. Re1
{[%clk 0:02:41.5]} 19... Rc7 {[%clk 0:03:04.9]} 20. Bd3 {[%clk 0:02:41.7]} 20...
Re8 {[%clk 0:03:01]} 21. Kf2 {[%clk 0:02:42]} 21... Bf5 {[%clk 0:02:54.8]} 22.
Bf1 {[%clk 0:02:28.7]} 22... h5 {[%clk 0:02:55]} 23. g3 {[%clk 0:02:28.8]} 23...
g5 {[%clk 0:02:46.2]} 24. h3 {[%clk 0:02:26.6]} 24... g4 {[%clk 0:02:47.3]} 25.
fxg4 {[%clk 0:02:20.9]} 25... hxg4 {[%clk 0:02:46.7]} 26. h4 {[%clk 0:02:12.2]}
26... b6 {[%clk 0:02:22.9]} 27. Rd4 {[%clk 0:02:12]} 27... Rd7 {[%clk
0:02:16.9]} 28. Be2 {[%clk 0:02:08.2]} 28... e5 {[%clk 0:02:08.1]} 29. dxe6
{[%clk 0:02:07.5]} 29... fxe6 {[%clk 0:01:34.9]} 30. Bxg4 {[%clk 0:02:07.2]}
30... Rf8 {[%clk 0:01:20.3]} 31. Kg2 {[%clk 0:02:03.3]} 31... e5 {[%clk
0:00:48.9]} 32. Bxf5 {[%clk 0:02:03.5]} 32... Rxf5 {[%clk 0:00:50.8]} 33. Rd5
{[%clk 0:02:00.5]} 33... Kf6 {[%clk 0:00:42.9]} 34. Rf1 {[%clk 0:01:57.8]} 34...
Rxf1 {[%clk 0:00:41.8]} 35. Kxf1 {[%clk 0:01:59.7]} 35... Ke6 {[%clk 0:00:38.9]}
36. Kg2 {[%clk 0:01:59.8]} 36... Rc7 {[%clk 0:00:37.9]} 37. b3 {[%clk 0:02:00]}
37... axb3 {[%clk 0:00:37.2]} 38. axb3 {[%clk 0:02:01.4]} 38... Ra7 {[%clk
0:00:37.7]} 39. Rb5 {[%clk 0:02:00.9]} 39... Ra2+ {[%clk 0:00:35.7]} 40. Kf3
{[%clk 0:02:01.9]} 40... Ra6 {[%clk 0:00:22.5]} 41. g4 {[%clk 0:02:01.2]} 41...
Kf6 {[%clk 0:00:23.8]} 42. Ke4 {[%clk 0:02:01.3]} 42... Ke6 {[%clk 0:00:24.7]}
43. h5 {[%clk 0:01:58.4]} 43... Ra2 {[%clk 0:00:20.7]} 44. Rxb6 {[%clk
0:01:57.5]} 44... Rf2 {[%clk 0:00:22.1]} 45. c5 {[%clk 0:01:52.9]} 45... Rf4+
{[%clk 0:00:22]} 46. Ke3 {[%clk 0:01:53.7]} 46... Rxg4 {[%clk 0:00:22.2]} 47.
Rxd6+ {[%clk 0:01:53.6]} 47... Ke7 {[%clk 0:00:22.4]} 48. Rb6 {[%clk 0:01:51.7]}
48... Rh4 {[%clk 0:00:22.7]} 49. h6 {[%clk 0:01:52.8]} 49... Kd7 {[%clk
0:00:21.7]} 50. b4 {[%clk 0:01:53.8]} 50... Kc7 {[%clk 0:00:22.1]} 51. Re6
{[%clk 0:01:50.1]} 51... Rxb4 {[%clk 0:00:20.6]} 52. Rxe5 {[%clk 0:01:46.6]}
52... Rh4 {[%clk 0:00:21.9]} 53. Re6 {[%clk 0:01:47.7]} 53... Kd7 {[%clk
0:00:23.3]} 54. Ra6 {[%clk 0:01:47.3]} 54... Kc7 {[%clk 0:00:23.6]} 55. Rb6
{[%clk 0:01:45.4]} 55... Kd7 {[%clk 0:00:22.7]} 56. Kd3 {[%clk 0:01:45.7]} 56...
Kc7 {[%clk 0:00:23.5]} 57. Ke3 {[%clk 0:01:42.7]} 57... Kd7 {[%clk 0:00:24.5]}
58. Kf3 {[%clk 0:01:43.8]} 58... Rh5 {[%clk 0:00:17.7]} 59. Kg4 {[%clk
0:01:31.9]} 59... Rxc5 {[%clk 0:00:16.9]} 60. Rg6 {[%clk 0:01:23.6]} 60... Rc1
{[%clk 0:00:12.2]} 61. Rg5 {[%clk 0:01:12.2]} 61... Rg1+ {[%clk 0:00:12]} 62.
Kf5 {[%clk 0:01:12.6]} 62... Rh1 {[%clk 0:00:09.1]} 63. Kg6 {[%clk 0:01:13.5]}
63... Ke7 {[%clk 0:00:10.5]} 64. Kg7 {[%clk 0:01:14.3]} 64... Rf1 {[%clk
0:00:05.5]} 65. h7 {[%clk 0:01:13.6]} 65... Rf7+ {[%clk 0:00:06.8]} 66. Kh6
{[%clk 0:01:14.5]} 66... Rf6+ {[%clk 0:00:05.9]} 67. Rg6 {[%clk 0:01:15.5]}
67... Rf8 {[%clk 0:00:03.1]} 68. Rg7+ {[%clk 0:01:13.9]} 68... Kf6 {[%clk
0:00:02.5]} 69. Rg8 {[%clk 0:01:14.6]} 69... Rf7 {[%clk 0:00:03]} 70. h8=Q+
{[%clk 0:01:14.9]} 70... Kf5 {[%clk 0:00:04.9]} 71. Rg5+ {[%clk 0:01:15.3]}
71... Kf4 {[%clk 0:00:06.8]} 72. Qe5+ {[%clk 0:01:15.9]} 72... Kf3 {[%clk
0:00:08.7]} 73. Rg3+ {[%clk 0:01:16.9]} 1-0